bitfinex/quotes_SOLUSD_20241116
["timestamp","ask_amount","ask_price","bid_price","bid_amount"]
[1731775955318,14.35655946,214.47,214.41,4.6639]
[1731775955838,14.35655946,214.43,214.38,11.6613]
[1731775956328,14.35655946,214.43,214.38,16.3259]
[1731775957524,14.35655946,214.43,214.38,11.6613]
[1731775957734,14.35655946,214.42,214.35,0.12549]
[1731775957954,14.35655946,214.39,214.34,16.3287]
[1731775959235,14.35655946,214.4,214.34,16.3287]
[1731775959440,19.02025946,214.43,214.36,14.35655946]
[1731775959639,19.01975946,214.45,214.38,14.35655946]
[1731775959939,4.6632,214.45,214.38,14.35655946]
[1731775960546,0.1797206,214.45,214.41,14.57572408]
[1731775960723,14.35655946,214.42,214.32,4.75947462]
[1731775961032,14.35655946,214.37,214.32,16.42427462]
[1731775963438,14.35655946,214.39,214.32,16.42427462]
[1731775964253,160.9,214.43,214.34,0.09367462]
[1731775964440,14.35655946,214.42,214.35,14.35655946]
[1731775964649,14.35655946,214.42,214.34,0.09367462]
[1731775964949,22.97249724,214.41,214.34,0.09367462]
[1731775965335,22.97249724,214.41,214.35,4.6652]
[1731775966644,22.97249724,214.39,214.33,4.6655]
[1731775967149,22.97249724,214.37,214.32,0.09367462]
[1731775967351,22.97249724,214.33,214.32,0.09367462]
[1731775967558,23.776884,214.32,214.22,11.6697]
[1731775967855,22.97249724,214.26,214.22,11.6697]
[1731775969055,183.87249724,214.3,214.22,34.64219724]
[1731775969237,183.87249724,214.3,214.23,0.12549]
[1731775970757,183.87249724,214.3,214.24,4.6676]
[1731775971460,22.97249724,214.3,214.24,4.6676]
[1731775971838,22.97249724,214.28,214.24,4.6676]
[1731775972257,22.97249724,214.28,214.22,11.6697]
[1731775972562,22.97249724,214.26,214.22,11.6697]
[1731775973133,184.776884,214.35,214.22,11.6697]
[1731775973440,22.97249724,214.3,214.23,22.97249724]
[1731775973943,22.97249724,214.29,214.22,39.31019724]
[1731775974560,22.97249724,214.29,214.22,16.3377]
[1731775974859,22.97249724,214.29,214.22,39.31019724]
[1731775975566,22.97249724,214.28,214.22,16.3377]
[1731775977847,4.6659,214.32,214.23,22.97249724]
[1731775978064,22.97249724,214.3,214.22,39.31019724]
[1731775978270,22.97249724,214.3,214.24,22.97249724]
[1731775978557,22.97249724,214.38,214.3,0.21916462]
[1731775978760,22.97249724,214.39,214.32,22.97249724]
[1731775978963,22.97249724,214.4,214.33,22.97249724]
[1731775979864,22.97249724,214.4,214.34,4.6654]
[1731775980065,22.97249724,214.39,214.34,4.6654]
[1731775980480,22.97249724,214.41,214.34,39.30159724]
[1731775980644,22.97249724,214.43,214.36,22.97249724]
[1731775981874,22.97249724,214.43,214.37,16.3268]
[1731775983269,22.97249724,214.43,214.36,22.97249724]
[1731775983760,23.15221784,214.45,214.38,22.97249724]
[1731775983971,0.1797206,214.45,214.41,22.97249724]
[1731775984163,0.1797206,214.45,214.4,22.97249724]
[1731775985247,0.1797206,214.45,214.41,4.6639]
[1731775986547,0.1797206,214.45,214.42,22.97249724]
[1731775986744,0.1797206,214.45,214.44,43.31715186]
[1731775987867,0.1797206,214.45,214.44,67.09403586]
[1731775988051,0.1797206,214.45,214.44,43.31715186]
[1731775988653,0.1797206,214.45,214.44,47.98045186]
[1731775990875,0.1797206,214.45,214.44,27.98045186]
[1731775992155,0.1797206,214.45,214.44,47.98045186]
[1731775995077,0.1797206,214.45,214.44,71.85733586]
[1731775996949,0.5385869,214.66,214.59,0.21916462]
[1731775997149,0.5385869,214.66,214.62,22.97249724]
[1731775998077,0.5385869,214.66,214.62,0.12549]
[1731775998252,22.97249724,214.65,214.59,0.12549]
[1731775998575,22.97249724,214.61,214.55,0.25098]
[1731775998756,22.97249724,214.62,214.56,4.6607]
[1731775998950,22.97249724,214.59,214.53,22.97249724]
[1731775999177,20.0,214.63,214.5,11.6546]
[1731775999366,23.776884,214.61,214.5,11.6546]
[1731776000271,22.97249724,214.54,214.47,0.09367462]
[1731776000479,22.97249724,214.54,214.47,0.34465462]
[1731776000682,22.97249724,214.53,214.47,0.34465462]
[1731776001066,22.97249724,214.54,214.47,0.34465462]
[1731776001380,22.97249724,214.55,214.49,0.34465462]
[1731776001562,4.6603,214.58,214.49,0.34465462]
[1731776001563,22.97249724,214.54,214.49,0.34465462]
[1731776001762,22.97249724,214.53,214.49,0.12549]
[1731776001974,160.9,214.6,214.48,39.29089724]
[1731776002283,22.97249724,214.56,214.49,22.97249724]
[1731776003271,22.97249724,214.56,214.5,0.25098]
[1731776003463,22.97249724,214.51,214.48,11.656]
[1731776003668,22.97249724,214.49,214.41,22.97249724]
[1731776003874,0.1,214.57,214.41,22.97249724]
[1731776003875,22.97249724,214.48,214.41,22.97249724]
[1731776004278,22.97249724,214.47,214.39,39.29769724]
[1731776004575,160.9,214.54,214.41,22.97249724]
[1731776004776,22.97249724,214.51,214.44,0.09367462]
[1731776005075,22.97249724,214.5,214.44,0.09367462]
[1731776005286,22.97249724,214.51,214.45,4.663]
[1731776005516,22.97249724,214.55,214.48,0.09367462]
[1731776005797,22.97249724,214.55,214.5,0.09367462]
[1731776006271,22.97249724,214.54,214.46,20.0]
[1731776006472,160.9,214.58,214.46,0.12549]
[1731776006782,22.97249724,214.53,214.48,0.25098]
[1731776007374,22.97249724,214.53,214.49,0.21916462]
[1731776007571,22.97249724,214.56,214.5,0.12549]
[1731776009361,22.97249724,214.58,214.52,0.21916462]
[1731776009570,12.2848869,214.66,214.51,39.28859724]
[1731776009571,22.97249724,214.61,214.54,23.31715186]
[1731776009872,22.97249724,214.59,214.54,0.34465462]
[1731776010764,22.97249724,214.58,214.54,0.34465462]
[1731776011091,22.97249724,214.55,214.52,0.25098]
[1731776011593,22.97249724,214.56,214.52,0.25098]
[1731776011884,22.97249724,214.57,214.52,0.25098]
[1731776012085,22.97249724,214.57,214.53,4.6613]
[1731776012259,4.6598,214.6,214.52,0.25098]
[1731776012260,22.97249724,214.56,214.52,0.25098]
[1731776012672,4.6593,214.62,214.52,0.25098]
[1731776012673,22.97249724,214.57,214.52,4.91238]
[1731776012871,22.97249724,214.58,214.52,4.91238]
[1731776013681,22.97249724,214.6,214.55,0.09367462]
[1731776013984,22.97249724,214.61,214.55,0.09367462]
[1731776014201,160.9,214.65,214.58,0.21916462]
[1731776014494,23.51108414,214.66,214.59,23.22347724]
[1731776014663,22.97249724,214.65,214.59,0.25098]
[1731776015578,22.97249724,214.65,214.59,4.91078]
[1731776016583,28.16958414,214.66,214.59,27.88327724]
[1731776016786,22.97249724,214.65,214.59,4.91078]
[1731776022399,22.97249724,214.64,214.59,4.91078]
[1731776022896,14.32654012,214.64,214.59,4.91078]
[1731776023489,14.32654012,214.6,214.54,0.25098]
[1731776023680,14.32654012,214.59,214.53,11.6529]
[1731776024506,14.32654012,214.59,214.53,16.314]
[1731776024801,22.93141024,214.59,214.53,16.314]
[1731776025596,22.93141024,214.6,214.53,22.93141024]
[1731776025973,22.93141024,214.6,214.54,0.12549]
[1731776026382,22.93141024,214.59,214.54,0.12549]
[1731776026595,22.93141024,214.59,214.53,0.34465462]
[1731776026793,22.93141024,214.59,214.53,5.00585462]
[1731776027094,22.93141024,214.59,214.53,16.65915462]
[1731776027397,4.6599,214.6,214.53,16.65915462]
[1731776027398,22.93141024,214.58,214.53,16.65915462]
[1731776027707,22.93141024,214.59,214.53,16.40817462]
[1731776028286,22.93141024,214.6,214.55,0.09367462]
[1731776029382,22.93141024,214.61,214.55,0.09367462]
[1731776029697,22.93141024,214.61,214.56,4.6607]
[1731776029900,22.93141024,214.62,214.56,4.6607]
[1731776030107,183.83141024,214.65,214.58,22.93141024]
[1731776030293,22.93141024,214.65,214.58,22.93141024]
[1731776031203,22.93141024,214.64,214.58,4.6602]
[1731776032683,22.93141024,214.63,214.58,4.6602]
[1731776032994,22.93141024,214.63,214.58,16.3108]
[1731776033186,22.93141024,214.65,214.59,0.34465462]
[1731776033404,23.46999714,214.66,214.59,23.27606486]
[1731776034204,0.5385869,214.66,214.61,16.3086]
[1731776034384,0.5385869,214.66,214.63,22.93141024]
[1731776035811,0.5385869,214.66,214.64,11.6474]
[1731776035978,23.46999714,214.66,214.64,16.3063]
[1731776036190,0.5385869,214.66,214.64,16.3063]
[1731776039203,0.5385869,214.66,214.65,0.21916462]
[1731776039907,0.5385869,214.66,214.64,16.3063]
[1731776040992,0.5385869,214.66,214.64,11.6474]
[1731776041507,0.5385869,214.66,214.62,4.6593]
[1731776041714,23.46999714,214.66,214.62,4.6593]
[1731776042196,22.93141024,214.64,214.6,16.3091]
[1731776042596,5.1970869,214.66,214.6,16.3091]
[1731776042597,22.93141024,214.63,214.6,16.3091]
[1731776042798,22.93141024,214.61,214.56,16.3121]
[1731776043218,22.93141024,214.62,214.56,16.3121]
[1731776043899,22.93141024,214.63,214.56,16.3121]
[1731776044405,23.46999714,214.66,214.59,22.93141024]
[1731776044612,22.93141024,214.65,214.57,43.15057486]
[1731776044788,14.32703805,214.63,214.57,20.0]
[1731776045313,14.32703805,214.62,214.57,20.0]
[1731776045802,14.32703805,214.61,214.56,11.6516]
[1731776045999,14.32703805,214.58,214.51,14.32703805]
[1731776046185,14.32703805,214.58,214.52,0.09367462]
[1731776046390,14.32703805,214.59,214.52,14.42071267]
[1731776047002,14.32703805,214.59,214.52,14.32703805]
[1731776047490,14.32703805,214.58,214.52,0.09367462]
[1731776047693,14.32703805,214.58,214.52,0.21916462]
[1731776047910,14.32703805,214.58,214.53,16.3146]
[1731776048485,14.32703805,214.59,214.53,16.3146]
[1731776049423,14.32703805,214.61,214.54,14.32703805]
[1731776049709,14.32703805,214.61,214.53,30.64163805]
[1731776049896,165.5593,214.63,214.53,30.64163805]
[1731776049897,14.32703805,214.6,214.53,30.64163805]
[1731776050301,14.32703805,214.62,214.54,14.32703805]
[1731776050501,14.32703805,214.62,214.55,4.6609]
[1731776050807,14.32703805,214.6,214.55,4.6609]
[1731776051011,14.32703805,214.57,214.53,16.3144]
[1731776051310,14.32703805,214.58,214.53,16.3144]
[1731776052015,14.32703805,214.59,214.53,16.3144]
[1731776053192,14.32703805,214.6,214.53,30.64143805]
[1731776053716,14.32703805,214.58,214.53,16.3144]
[1731776053907,14.32703805,214.59,214.53,16.3144]
[1731776054309,14.32703805,214.54,214.49,11.6553]
[1731776055094,14.32703805,214.53,214.49,11.6553]
[1731776055900,14.32703805,214.52,214.49,11.6553]
[1731776056807,14.32703805,214.61,214.49,11.6553]
[1731776056808,14.32703805,214.51,214.49,11.6553]
[1731776057522,14.32703805,214.5,214.45,16.3205]
[1731776057819,14.32703805,214.48,214.45,16.3205]
[1731776058623,14.32703805,214.5,214.45,11.6575]
[1731776058994,14.32703805,214.51,214.45,11.6575]
[1731776059229,14.32703805,214.5,214.45,11.6575]
[1731776059397,14.32703805,214.49,214.45,11.6575]
[1731776060996,4.6616,214.52,214.45,11.6575]
[1731776060997,14.32703805,214.5,214.45,11.6575]
[1731776061712,14.32703805,214.51,214.45,11.6575]
[1731776062126,14.32703805,214.53,214.46,14.67169267]
[1731776062301,14.32703805,214.54,214.46,14.67169267]
[1731776063100,14.32703805,214.54,214.47,14.32703805]
[1731776063307,14.32703805,214.54,214.48,4.6624]
[1731776063712,14.32703805,214.53,214.48,4.6624]
[1731776065500,14.32703805,214.57,214.5,14.32703805]
[1731776065700,21.63523682,214.6,214.53,14.32703805]
[1731776066033,14.32703805,214.6,214.53,14.32703805]
[1731776066497,14.32703805,214.61,214.54,30.98559267]
[1731776066699,14.32703805,214.6,214.54,16.65855462]
[1731776066893,14.32703805,214.59,214.54,16.3139]
[1731776067620,14.32703805,214.58,214.54,11.6528]
[1731776067921,14.32703805,214.61,214.54,25.97983805]
[1731776068611,14.32703805,214.6,214.54,11.6528]
[1731776069208,14.32703805,214.61,214.54,14.32703805]
[1731776070430,14.32703805,214.61,214.55,4.6609]
[1731776070932,14.32703805,214.6,214.55,4.6609]
[1731776071513,14.32703805,214.6,214.54,11.6525]
[1731776071729,14.32703805,214.57,214.54,11.6525]
[1731776071917,14.32703805,214.6,214.54,16.3136]
[1731776072112,14.32703805,214.59,214.54,16.3136]
[1731776073210,14.32703805,214.58,214.54,11.6525]
[1731776077015,195.22703805,214.62,214.55,14.42071267]
[1731776077234,14.32703805,214.6,214.55,0.09367462]
[1731776078233,14.32703805,214.6,214.55,4.75457462]
[1731776080219,18.98663805,214.61,214.55,4.6609]
[1731776080524,14.32703805,214.6,214.54,11.6525]
[1731776080923,14.32703805,214.61,214.54,25.97953805]
[1731776082342,14.32703805,214.61,214.54,30.64063805]
[1731776083838,18.98643805,214.62,214.55,14.32703805]
[1731776084142,14.32703805,214.61,214.54,25.97953805]
[1731776084317,14.32703805,214.63,214.56,14.32703805]
[1731776084522,14.32703805,214.62,214.56,14.32703805]
[1731776084724,14.32703805,214.62,214.55,14.32703805]
[1731776085343,14.32703805,214.62,214.56,4.6607]
[1731776086029,14.32703805,214.61,214.56,4.6607]
[1731776087627,14.32703805,214.61,214.54,25.97953805]
[1731776088025,14.32703805,214.61,214.55,14.32703805]
[1731776089039,14.32703805,214.61,214.56,4.6607]
[1731776090026,14.32703805,214.61,214.54,25.97953805]
[1731776090646,14.32703805,214.64,214.57,14.32703805]
[1731776090834,174.7276487,214.65,214.57,9.1687487]
[1731776091043,13.8276487,214.65,214.57,9.1687487]
[1731776091223,9.1687487,214.65,214.58,9.1687487]
[1731776091425,4.6585,214.67,214.59,9.1687487]
[1731776091727,9.7073356,214.66,214.59,9.1687487]
[1731776091921,9.1687487,214.65,214.58,9.1687487]
[1731776092149,9.1687487,214.63,214.57,16.3116]
[1731776092831,9.1687487,214.61,214.57,16.3116]
[1731776093342,9.1687487,214.62,214.57,11.6512]
[1731776093527,9.1687487,214.61,214.57,11.6512]
[1731776094928,4.6589,214.65,214.57,11.6512]
[1731776095128,9.1687487,214.64,214.57,11.6512]
[1731776096950,13.8276487,214.64,214.57,16.3116]
[1731776097129,9.1687487,214.63,214.57,16.3116]
[1731776098745,9.1687487,214.64,214.57,16.3116]
[1731776100028,9.1687487,214.64,214.57,9.1687487]
[1731776100527,13.8277487,214.64,214.57,9.1687487]
[1731776101937,13.8277487,214.64,214.58,4.6602]
[1731776102851,9.1687487,214.62,214.54,9.1687487]
[1731776103555,9.1687487,214.62,214.52,0.09367462]
[1731776103556,9.1687487,214.62,214.55,9.1687487]
[1731776104127,13.8281487,214.62,214.56,16.3124]
[1731776105257,9.1687487,214.59,214.56,11.6517]
[1731776105558,9.1687487,214.6,214.56,11.6517]
[1731776106065,4.6594,214.62,214.56,11.6517]
[1731776106353,9.1687487,214.59,214.56,11.6517]
[1731776106539,9.1687487,214.59,214.53,4.6611]
[1731776107446,4.6594,214.62,214.47,23.3132]
[1731776107447,9.1687487,214.57,214.47,23.3132]
[1731776107648,9.1687487,214.55,214.5,24.6618]
[1731776107861,9.1687487,214.54,214.5,24.6618]
[1731776108536,9.1687487,214.52,214.5,20.0]
[1731776109347,9.1687487,214.53,214.5,20.0]
[1731776109741,9.1687487,214.54,214.5,20.0]
[1731776111033,9.1687487,214.53,214.5,20.0]
[1731776111763,9.1687487,214.54,214.5,20.0]
[1731776111936,33.8297487,214.55,214.5,20.0]
[1731776112451,9.1687487,214.54,214.5,20.0]
[1731776112657,9.1687487,214.53,214.5,20.0]
[1731776114170,24.6608,214.56,214.5,20.0]
[1731776114453,160.9,214.57,214.51,9.1687487]
[1731776114649,20.0,214.57,214.51,9.1687487]
[1731776115368,4.6599,214.6,214.54,9.1687487]
[1731776115654,4.6596,214.61,214.56,9.1687487]
[1731776115860,4.6596,214.61,214.51,4.6616]
[1731776116036,9.1687487,214.6,214.54,9.1687487]
[1731776116359,9.1687487,214.6,214.53,9.1687487]
[1731776116662,13.8285487,214.6,214.53,13.8298487]
[1731776117139,9.1687487,214.59,214.53,13.8298487]
[1731776117664,4.6598,214.6,214.51,16.316]
[1731776117844,9.1687487,214.57,214.51,16.316]
[1731776118355,9.1687487,214.57,214.51,25.4847487]
[1731776118861,9.1687487,214.58,214.51,25.4847487]
[1731776119061,9.1687487,214.59,214.52,9.1687487]
[1731776119359,13.8284487,214.61,214.54,9.1687487]
[1731776119563,20.0,214.6,214.54,9.1687487]
[1731776119967,29.1687487,214.6,214.54,9.1687487]
[1731776120461,9.1687487,214.6,214.54,13.8297487]
[1731776121259,9.1687487,214.6,214.54,4.661]
[1731776121462,13.8285487,214.6,214.54,4.661]
[1731776121761,9.1687487,214.57,214.52,4.6613]
[1731776123763,9.1687487,214.58,214.52,4.6613]
[1731776125954,13.8288487,214.59,214.52,4.6613]
[1731776126750,13.8288487,214.59,214.52,13.8300487]
[1731776129060,13.8288487,214.59,214.52,9.1687487]
[1731776130672,9.1687487,214.55,214.5,20.0]
[1731776130850,9.1687487,214.56,214.5,20.0]
[1731776131050,9.1687487,214.58,214.5,33.8306487]
[1731776131451,9.1687487,214.57,214.5,20.0]
[1731776132161,9.1687487,214.56,214.5,20.0]
[1731776132562,9.1687487,214.57,214.5,29.1687487]
[1731776133352,4.6607,214.56,214.5,29.1687487]
[1731776133553,13.8294487,214.56,214.5,20.0]
[1731776133956,9.1687487,214.54,214.5,20.0]
[1731776134268,9.1687487,214.55,214.5,20.0]
[1731776134654,9.1687487,214.54,214.5,20.0]
[1731776135451,4.6613,214.53,214.5,20.0]
[1731776136368,9.1687487,214.51,214.5,20.0]
[1731776136882,29.1687487,214.51,214.5,20.0]
[1731776137177,62.20805602,214.51,214.5,20.0]
[1731776137577,94.37600212,214.51,214.5,20.0]
[1731776138959,94.37600212,214.51,214.5,18.78747189]
[1731776139154,43.87055862,214.5,214.36,4.6648]
[1731776139356,43.87055862,214.5,214.34,16.3289]
[1731776139357,9.1687487,214.41,214.34,16.3289]
[1731776139556,9.1687487,214.41,214.34,25.4976487]
[1731776140077,9.1687487,214.4,214.34,20.8323487]
[1731776140282,9.1687487,214.39,214.34,11.6636]
[1731776143273,13.8329487,214.4,214.34,16.329]
[1731776143488,160.9,214.45,214.37,9.1687487]
[1731776143786,160.9,214.51,214.43,9.1687487]
[1731776143960,9.1687487,214.51,214.45,9.1687487]
[1731776144568,9.1687487,214.51,214.44,9.1687487]
[1731776144771,9.1687487,214.5,214.44,9.1687487]
[1731776144971,9.1687487,214.51,214.44,9.1687487]
[1731776145172,9.1687487,214.51,214.44,13.8319487]
[1731776145381,9.1687487,214.5,214.44,4.6632]
[1731776145772,4.75477462,214.54,214.46,9.1687487]
[1731776145773,165.5611,214.54,214.46,9.1687487]
[1731776146090,9.1687487,214.52,214.45,9.1687487]
[1731776146663,9.1687487,214.51,214.44,25.4901487]
[1731776146867,9.1687487,214.51,214.44,14.34273628]
[1731776146868,14.34273628,214.51,214.44,14.34273628]
[1731776147390,4.75407462,214.57,214.42,14.34273628]
[1731776147391,14.34273628,214.49,214.42,14.34273628]
[1731776147580,14.34273628,214.49,214.41,14.46822628]
[1731776147777,14.34273628,214.51,214.44,14.34273628]
[1731776148369,14.34273628,214.51,214.45,4.663]
[1731776148582,14.34273628,214.52,214.45,19.00573628]
[1731776148786,14.34273628,214.51,214.45,4.663]
[1731776149583,14.34273628,214.5,214.45,11.6577]
[1731776150497,14.34273628,214.48,214.42,4.6637]
[1731776150993,14.34273628,214.49,214.42,19.00643628]
[1731776151373,14.34273628,214.5,214.43,14.34273628]
[1731776151774,14.34273628,214.5,214.44,4.6633]
[1731776153381,4.6614,214.53,214.46,14.34273628]
[1731776153582,14.34273628,214.54,214.47,14.34273628]
[1731776154474,14.34273628,214.55,214.48,14.34273628]
[1731776154704,14.34273628,214.56,214.49,14.34273628]
[1731776155194,4.6605,214.57,214.49,4.6622]
[1731776155195,14.34273628,214.55,214.49,4.6622]
[1731776155396,14.34273628,214.55,214.48,14.34273628]
[1731776155397,0.09367462,214.54,214.48,14.34273628]
[1731776155634,0.09367462,214.54,214.33,34.4948262]
[1731776155635,14.34273628,214.49,214.36,16.3276]
[1731776155787,14.34273628,214.47,214.4,14.34273628]
[1731776156600,14.34273628,214.47,214.41,16.3238]
[1731776158709,14.34273628,214.46,214.41,16.3238]
[1731776159016,14.34273628,214.46,214.41,11.6599]
[1731776159302,14.34273628,214.43,214.41,11.6599]
[1731776159504,175.24273628,214.5,214.34,23.3274]
[1731776159505,160.9,214.49,214.34,23.3274]
[1731776159696,14.34273628,214.5,214.37,11.6619]
[1731776159697,14.34273628,214.4,214.37,11.6619]
[1731776160618,14.34273628,214.4,214.35,4.6652]
[1731776160790,14.34273628,214.38,214.35,4.6652]
[1731776161207,160.9,214.46,214.35,4.6652]
[1731776161208,14.34273628,214.39,214.35,4.6652]
[1731776162409,14.34273628,214.44,214.37,14.34273628]
[1731776163311,14.34273628,214.44,214.38,4.6646]
[1731776163609,14.34273628,214.45,214.38,30.66883628]
[1731776163817,14.34273628,214.44,214.38,30.66883628]
[1731776165307,14.34273628,214.45,214.38,30.66883628]
[1731776165504,14.34273628,214.42,214.38,16.3261]
[1731776165814,14.34273628,214.4,214.38,11.6615]
[1731776166112,14.34273628,214.41,214.38,16.3261]
[1731776166420,14.34273628,214.44,214.38,16.3261]
[1731776166591,14.34273628,214.45,214.38,30.66883628]
[1731776168006,14.34273628,214.44,214.38,30.66883628]
[1731776168514,14.34273628,214.44,214.38,16.3261]
[1731776170098,14.34273628,214.44,214.38,14.34273628]
[1731776171710,14.34273628,214.44,214.39,16.3252]
[1731776172010,14.34273628,214.47,214.4,14.34273628]
[1731776172220,14.34273628,214.48,214.41,14.34273628]
[1731776173304,14.34273628,214.48,214.42,16.323]
[1731776173615,14.34273628,214.49,214.42,30.66573628]
[1731776173815,14.34273628,214.48,214.42,16.323]
[1731776177308,14.34273628,214.46,214.42,16.323]
[1731776178297,14.34273628,214.47,214.42,11.6593]
[1731776178893,12.38595045,214.47,214.42,11.6593]
[1731776179196,14.34273628,214.48,214.42,11.6593]
[1731776179392,14.34273628,214.48,214.42,16.323]
[1731776179590,14.34273628,214.51,214.43,14.34273628]
[1731776179807,14.34273628,214.5,214.42,30.66573628]
[1731776180201,14.34273628,214.46,214.33,23.3283]
[1731776180519,14.34273628,214.44,214.37,14.34273628]
[1731776180895,14.34273628,214.43,214.37,14.34273628]
[1731776181295,14.34273628,214.43,214.38,16.3261]
[1731776181698,14.34273628,214.44,214.38,16.3261]
[1731776183297,14.34273628,214.43,214.38,16.3261]
[1731776183924,14.34273628,214.45,214.38,30.66883628]
[1731776184104,14.34273628,214.44,214.38,16.3261]
[1731776184924,14.34273628,214.43,214.38,16.3261]
[1731776185920,14.34273628,214.43,214.38,11.6615]
[1731776186820,160.9,214.48,214.38,11.6615]
[1731776186821,9.18667946,214.42,214.38,11.6615]
[1731776187230,9.18667946,214.41,214.38,11.6615]
[1731776187721,9.18667946,214.42,214.38,11.6615]
[1731776187928,9.18667946,214.43,214.38,11.6615]
[1731776188811,9.18667946,214.42,214.38,11.6615]
[1731776190007,9.18667946,214.43,214.38,11.6615]
[1731776190420,4.6629,214.46,214.38,20.84817946]
[1731776190639,9.18667946,214.44,214.38,20.84817946]
[1731776191633,9.18667946,214.43,214.38,16.3261]
[1731776192012,160.9,214.49,214.4,9.18667946]
[1731776192211,9.18667946,214.5,214.43,9.18667946]
[1731776192513,9.18667946,214.55,214.48,9.18667946]
[1731776192713,4.6608,214.56,214.47,9.18667946]
[1731776192927,9.18667946,214.54,214.47,9.18667946]
[1731776193603,9.18667946,214.53,214.48,4.6624]
[1731776194920,14.33995709,214.53,214.48,4.6624]
[1731776195809,175.23995709,214.57,214.48,4.6624]
[1731776196034,175.23995709,214.57,214.51,14.33995709]
[1731776196611,14.33995709,214.57,214.51,14.33995709]
[1731776197129,14.33995709,214.57,214.51,19.00165709]
[1731776198723,14.33995709,214.57,214.5,14.33995709]
[1731776198916,4.6602,214.58,214.47,16.3192]
[1731776198917,14.33995709,214.56,214.49,14.33995709]
[1731776199741,14.33995709,214.53,214.47,16.3192]
[1731776201828,14.33995709,214.51,214.47,16.3192]
[1731776202623,14.33995709,214.52,214.47,16.3192]
[1731776203131,14.33995709,214.5,214.44,0.12549]
[1731776203811,14.33995709,214.49,214.43,11.6587]
[1731776204012,14.33995709,214.48,214.43,11.6587]
[1731776204333,0.1,214.56,214.43,11.6587]
[1731776204334,14.33995709,214.47,214.43,11.6587]
[1731776205722,14.33995709,214.49,214.43,11.6587]
[1731776206133,14.33995709,214.51,214.44,14.46544709]
[1731776206323,19.00145709,214.53,214.46,14.33995709]
[1731776206647,14.33995709,214.52,214.44,14.46544709]
[1731776206934,14.33995709,214.51,214.44,14.46544709]
[1731776207141,14.33995709,214.51,214.45,4.663]
[1731776207335,14.33995709,214.52,214.45,16.3207]
[1731776207638,14.33995709,214.52,214.46,0.12549]
[1731776208037,14.33995709,214.52,214.45,30.66065709]
[1731776208536,14.33995709,214.54,214.47,14.33995709]
[1731776208948,14.33995709,214.53,214.46,14.46544709]
[1731776209139,4.661,214.55,214.46,14.46544709]
[1731776209140,14.33995709,214.52,214.46,0.12549]
[1731776209845,179.90035709,214.57,214.5,14.33995709]
[1731776210140,14.33995709,214.56,214.49,14.33995709]
[1731776210644,14.33995709,214.53,214.47,16.3192]
[1731776210946,14.33995709,214.52,214.47,16.3192]
[1731776212237,14.33995709,214.53,214.47,16.3192]
[1731776215673,14.33995709,214.54,214.47,30.65915709]
[1731776216426,19.00115709,214.54,214.47,30.65915709]
[1731776217745,14.33995709,214.53,214.47,16.3192]
[1731776218250,14.33995709,214.53,214.47,11.6566]
[1731776218549,14.33995709,214.52,214.47,11.6566]
[1731776219049,14.33995709,214.51,214.47,11.6566]
[1731776219254,14.33995709,214.51,214.44,19.00305709]
[1731776219945,14.33995709,214.51,214.44,30.66125709]
[1731776220538,14.33995709,214.48,214.44,16.3213]
[1731776220731,14.33995709,214.5,214.44,16.3213]
[1731776220943,14.33995709,214.56,214.49,14.33995709]
[1731776221130,175.23995709,214.57,214.5,14.33995709]
[1731776221323,14.33995709,214.57,214.5,14.33995709]
[1731776221523,14.33995709,214.59,214.51,14.33995709]
[1731776221750,14.33995709,214.62,214.55,14.33995709]
[1731776221942,14.33995709,214.64,214.57,14.33995709]
[1731776223163,14.33995709,214.64,214.58,4.6602]
[1731776226257,14.33995709,214.62,214.56,16.3118]
[1731776226460,4.659,214.64,214.56,16.3118]
[1731776226641,14.33995709,214.61,214.56,16.3118]
[1731776226958,14.33995709,214.61,214.56,11.6513]
[1731776227131,14.33995709,214.61,214.51,23.40257462]
[1731776227132,14.33995709,214.58,214.51,49.30275709]
[1731776227338,14.33995709,214.58,214.52,4.6613]
[1731776227544,14.33995709,214.58,214.51,25.99385709]
[1731776227545,14.33995709,214.58,214.51,30.65555709]
[1731776228059,14.33995709,214.57,214.51,16.3156]
[1731776228552,14.33995709,214.56,214.51,16.3156]
[1731776229855,4.6602,214.58,214.51,16.3156]
[1731776229856,14.33995709,214.55,214.51,11.6539]
[1731776230066,14.33995709,214.54,214.51,11.6539]
[1731776230374,14.33995709,214.52,214.47,11.6565]
[1731776230687,14.33995709,214.49,214.43,16.322]
[1731776230860,14.33995709,214.47,214.43,11.6587]